fUSD/lending_fUSD_20250503
["ID","MTS","AMOUNT","RATE_DAILY","PERIOD"]
[359736698,1746288973726,700.0,0.00032876,120]
[359736699,1746288973962,814.51940817,0.00032876,120]
[359736705,1746289035502,2374.97,0.00018693,2]
[359736712,1746289311738,809.9,0.00016747,2]
[359736713,1746289312037,809.9,0.00019011,2]
[359736716,1746289464310,14007.41952235,0.00018677,2]
[359736717,1746289464339,9892.58047765,0.00018677,2]
[359736718,1746289536722,501.68,0.0001868,2]
[359736729,1746289727467,656.19217768,0.00019458,2]
[359736730,1746289758637,949.2,0.00018624,2]
[359736731,1746289759327,949.2,0.00025608,120]
[359736732,1746289759550,949.2,0.00027936,120]
[359736733,1746289765424,1000.0,0.0001862,2]
[359736734,1746289820061,156.43,0.00018614,2]
[359736739,1746289831821,-620.26925004,0.00019507,2]
[359736740,1746289831931,-35.92292762,0.00019507,2]
[359736741,1746289831940,-200.0,0.0001951,2]
[359736742,1746289831950,-300.0,0.00019512,2]
[359736743,1746289831959,-62.379653,0.00019512,2]
[359736744,1746289831971,-237.620347,0.00019512,2]
[359736745,1746289831981,-492.53561567,0.00019512,2]
[359736746,1746289831993,-586.98352101,0.00019512,2]
[359736747,1746289832038,-120.48086332,0.00019512,2]
[359736748,1746289832047,-300.0,0.00019512,2]
[359736749,1746289832057,-500.0,0.00019513,2]
[359736750,1746289832067,-500.0,0.00019513,2]
[359736751,1746289832077,-334.17997391,0.00019513,2]
[359736752,1746289832094,-165.82002609,0.00019513,2]
[359736753,1746289832104,-500.0,0.00019513,2]
[359736754,1746289832114,-500.0,0.00019513,2]
[359736755,1746289832124,-500.0,0.00019513,2]
[359736756,1746289832134,-500.0,0.00019513,2]
[359736757,1746289832143,-500.0,0.00019513,2]
[359736758,1746289832153,-500.0,0.00019513,2]
[359736760,1746289832162,-500.0,0.00019513,2]
[359736762,1746289832171,-500.0,0.00019513,2]
[359736764,1746289832182,-500.0,0.00019513,2]
[359736766,1746289832191,-357.18532945,0.00019513,2]
[359736768,1746289832202,-142.81467055,0.00019513,2]
[359736770,1746289832212,-500.0,0.00019513,2]
[359736772,1746289832221,-500.0,0.00019513,2]
[359736774,1746289832231,-500.0,0.00019513,2]
[359736775,1746289832241,-500.0,0.00019513,2]
[359736776,1746289832251,-500.0,0.00019513,2]
[359736779,1746289832260,-500.0,0.00019513,2]
[359736782,1746289832270,-500.0,0.00019513,2]
[359736784,1746289832279,-500.0,0.00019513,2]
[359736786,1746289832289,-500.0,0.00019513,2]
[359736788,1746289832298,-500.0,0.00019513,2]
[359736790,1746289832307,-500.0,0.00019513,2]
[359736792,1746289832317,-450.0,0.00019513,2]
[359736794,1746289832327,-500.0,0.00019513,2]
[359736795,1746289832336,-500.0,0.00019513,2]
[359736797,1746289832345,-500.0,0.00019513,2]
[359736798,1746289832354,-500.0,0.00019513,2]
[359736801,1746289832369,-500.0,0.00019513,2]
[359736803,1746289832379,-500.0,0.00019513,2]
[359736805,1746289832388,-500.0,0.00019513,2]
[359736806,1746289832397,-500.0,0.00019513,2]
[359736808,1746289832408,-500.0,0.00019513,2]
[359736811,1746289832417,-500.0,0.00019513,2]
[359736814,1746289832426,-500.0,0.00019513,2]
[359736817,1746289832437,-500.0,0.00019513,2]
[359736820,1746289832446,-500.0,0.00019513,2]
[359736822,1746289832455,-500.0,0.00019513,2]
[359736824,1746289832465,-500.0,0.00019513,2]
[359736826,1746289832473,-500.0,0.00019513,2]
[359736828,1746289832482,-500.0,0.00019513,2]
[359736830,1746289832491,-500.0,0.00019513,2]
[359736832,1746289832501,-500.0,0.00019513,2]
[359736834,1746289832510,-500.0,0.00019513,2]
[359736836,1746289832519,-500.0,0.00019513,2]
[359736838,1746289832528,-500.0,0.00019513,2]
[359736840,1746289832537,-500.0,0.00019513,2]
[359736842,1746289832546,-500.0,0.00019513,2]
[359736844,1746289832555,-500.0,0.00019513,2]
[359736846,1746289832564,-500.0,0.00019513,2]
[359736848,1746289832574,-500.0,0.00019513,2]
[359736850,1746289832584,-500.0,0.00019513,2]
[359736852,1746289832593,-500.0,0.00019513,2]
[359736854,1746289832602,-500.0,0.00019513,2]
[359736856,1746289832611,-500.0,0.00019513,2]
[359736858,1746289832620,-500.0,0.00019513,2]
[359736860,1746289832629,-500.0,0.00019513,2]
[359736862,1746289832638,-500.0,0.00019513,2]
[359736864,1746289832647,-500.0,0.00019513,2]
[359736866,1746289832657,-500.0,0.00019513,2]
[359736868,1746289832666,-500.0,0.00019513,2]
[359736869,1746289832675,-500.0,0.00019513,2]
[359736871,1746289832684,-500.0,0.00019513,2]
[359736873,1746289832693,-500.0,0.00019513,2]
[359736875,1746289832702,-500.0,0.00019513,2]
[359736877,1746289832711,-500.0,0.00019513,2]
[359736879,1746289832720,-500.0,0.00019513,2]
[359736881,1746289832729,-500.0,0.00019513,2]
[359736883,1746289832739,-557.1918888,0.00019513,2]
[359736885,1746289832748,-500.0,0.00019513,2]
[359736887,1746289832757,-500.0,0.00019513,2]
[359736889,1746289832767,-500.0,0.00019513,2]
[359736891,1746289832776,-500.0,0.00019513,2]
[359736893,1746289832785,-500.0,0.00019513,2]
[359736895,1746289832794,-500.0,0.00019513,2]
[359736896,1746289832804,-500.0,0.00019513,2]
[359736897,1746289832813,-500.0,0.00019513,2]
[359736898,1746289832823,-500.0,0.00019513,2]
[359736899,1746289832832,-500.0,0.00019513,2]
[359736900,1746289832841,-500.0,0.00019513,2]
[359736901,1746289832851,-500.0,0.00019513,2]
[359736902,1746289832861,-500.0,0.00019513,2]
[359736903,1746289832870,-574.16237325,0.00019514,2]
[359736904,1746289832880,-156.813727,0.00019514,2]
[359736905,1746289832889,-250.0,0.00019514,2]
[359736906,1746289832899,-12394.57209481,0.00019514,2]
[359736907,1746289832911,-856.5879686,0.00019514,2]
[359736908,1746289832922,-18283.7842712,0.00019514,2]
[359736909,1746289832933,-3396.28230896,0.00019514,2]
[359737105,1746289837741,-60518.76535902,0.00019514,2]
[359737107,1746289837751,-935.95468465,0.00019515,2]
[359737109,1746289837761,-313.86626464,0.00019515,2]
[359737110,1746289837770,-500.0,0.00019516,2]
[359737111,1746289837781,-26156.5872,0.00019516,2]
[359737112,1746289837790,-14181.1157,0.00019516,2]
[359737113,1746289837799,-656.19217766,0.00019556,2]
[359737114,1746289837808,-156.81372692,0.00019557,2]
[359737115,1746289837818,-935.95468457,0.00019558,2]
[359737116,1746289837827,-169.266646,0.00019572,2]
[359737117,1746289837836,-154.430521,0.00019572,2]
[359737118,1746289837845,-207.4,0.00019588,2]
[359737119,1746289837855,-156.81372692,0.000196,2]
[359737120,1746289837864,-1000.0,0.000196,2]
[359737121,1746289837874,-1669.21229264,0.000196,2]
[359737122,1746289837883,-150.99,0.00019601,2]
[359737123,1746289837893,-999.99,0.00019601,2]
[359737124,1746289837902,-6953.78,0.00019601,2]
[359737125,1746289837913,-9999.99,0.00019601,2]
[359737126,1746289837922,-435.18,0.00019601,2]
[359737127,1746289837932,-935.95468457,0.00019601,2]
[359737128,1746289837941,-450.0,0.00019603,2]
[359737129,1746289837951,-450.0,0.00019603,2]
[359737130,1746289837961,-450.0,0.00019603,2]
[359737131,1746289837971,-450.0,0.00019603,2]
[359737132,1746289837980,-450.0,0.00019603,2]
[359737133,1746289837989,-9999.99,0.00019603,2]
[359737134,1746289837999,-531.09,0.00019603,2]
[359737135,1746289838010,-1219.12,0.00019603,2]
[359737136,1746289838020,-499.99,0.00019603,2]
[359737137,1746289838029,-9999.99,0.00019603,2]
[359737138,1746289838039,-9161.25,0.00019603,2]
[359737139,1746289838049,-3261.8,0.00019603,2]
[359737140,1746289838058,-4209.35,0.00019603,2]
[359737141,1746289838067,-9353.24,0.00019603,2]
[359737143,1746289838076,-150.99,0.00019603,2]
[359737144,1746289838086,-151.0,0.00019603,2]
[359737145,1746289838095,-151.0,0.00019603,2]
[359737146,1746289838104,-656.19217766,0.00019605,2]
[359737147,1746289838114,-470.48,0.00019614,2]
[359737148,1746289838124,-450.0,0.00019614,2]
[359737149,1746289838133,-450.0,0.00019614,2]
[359737150,1746289838142,-450.0,0.00019614,2]
[359737151,1746289838152,-450.0,0.00019614,2]
[359737152,1746289838161,-450.0,0.00019614,2]
[359737153,1746289838171,-450.0,0.00019614,2]
[359737154,1746289838180,-450.0,0.00019614,2]
[359737155,1746289838189,-450.0,0.00019614,2]
[359737156,1746289838199,-450.0,0.00019614,2]
[359737158,1746289838208,-450.0,0.00019614,2]
[359737160,1746289838217,-450.0,0.00019614,2]
[359737162,1746289838227,-450.0,0.00019614,2]
[359737165,1746289838236,-450.0,0.00019614,2]
[359737169,1746289838245,-450.0,0.00019614,2]
[359737173,1746289838254,-450.0,0.00019614,2]
[359737177,1746289838262,-450.0,0.00019614,2]
[359737180,1746289838271,-925.45,0.00019614,2]
[359737182,1746289838281,-450.0,0.00019614,2]
[359737184,1746289838290,-397.63529192,0.00019614,2]
[359737186,1746289838299,-450.0,0.00019614,2]
[359737188,1746289838308,-450.0,0.00019614,2]
[359737191,1746289838317,-450.0,0.00019614,2]
[359737193,1746289838326,-450.0,0.00019614,2]
[359737194,1746289838335,-450.0,0.00019614,2]
[359737197,1746289838346,-450.0,0.00019614,2]
[359737198,1746289838356,-672.77,0.00019614,2]
[359737201,1746289838369,-450.0,0.00019614,2]
[359737202,1746289838378,-450.0,0.00019614,2]
[359737205,1746289838388,-502.08,0.00019614,2]
[359737206,1746289838398,-450.0,0.00019614,2]
[359737207,1746289838409,-450.0,0.00019614,2]
[359737208,1746289838418,-450.0,0.00019614,2]
[359737209,1746289838427,-450.0,0.00019614,2]
[359737210,1746289838436,-450.0,0.00019614,2]
[359737211,1746289838446,-450.0,0.00019614,2]
[359737212,1746289838455,-450.0,0.00019614,2]
[359737213,1746289838464,-461.94,0.00019614,2]
[359737214,1746289838474,-450.0,0.00019614,2]
[359737215,1746289838483,-450.0,0.00019614,2]
[359737216,1746289838493,-450.0,0.00019614,2]
[359737217,1746289838502,-450.0,0.00019614,2]
[359737218,1746289838511,-510.58787451,0.00019614,2]
[359737219,1746289838520,-450.0,0.00019614,2]
[359737220,1746289838530,-450.0,0.00019614,2]
[359737221,1746289838540,-450.0,0.00019614,2]
[359737222,1746289838549,-649.54,0.00019614,2]
[359737223,1746289838559,-450.0,0.00019614,2]
[359737224,1746289838568,-450.0,0.00019614,2]
[359737225,1746289838578,-450.0,0.00019614,2]
[359737226,1746289838586,-450.0,0.00019614,2]
[359737227,1746289838595,-450.0,0.00019614,2]
[359737228,1746289838606,-450.0,0.00019614,2]
[359737229,1746289838614,-450.0,0.00019614,2]
[359737230,1746289838623,-450.0,0.00019614,2]
[359737231,1746289838633,-450.0,0.00019614,2]
[359737232,1746289838642,-450.65,0.00019614,2]
[359737233,1746289838652,-450.0,0.00019614,2]
[359737234,1746289838662,-508.91,0.00019614,2]
[359737235,1746289838671,-998.42,0.00019614,2]
[359737236,1746289838680,-450.0,0.00019614,2]
[359737237,1746289838689,-450.0,0.00019614,2]
[359737238,1746289838698,-2248.49,0.00019614,2]
[359737239,1746289838707,-576.42,0.00019614,2]
[359737240,1746289838717,-450.0,0.00019614,2]
[359737241,1746289838726,-450.0,0.00019614,2]
[359737242,1746289838735,-450.0,0.00019614,2]
[359737243,1746289838745,-450.0,0.00019614,2]
[359737244,1746289838754,-97054.27,0.00019614,2]
[359737245,1746289838764,-1386.03,0.00019614,2]
[359737246,1746289838773,-450.0,0.00019614,2]
[359737247,1746289838783,-450.0,0.00019614,2]
[359737248,1746289838792,-647.64,0.00019614,2]
[359737249,1746289838801,-450.0,0.00019614,2]
[359737250,1746289838811,-772.19,0.00019614,2]
[359737251,1746289838820,-450.0,0.00019614,2]
[359737253,1746289838829,-450.0,0.00019614,2]
[359737255,1746289838838,-450.0,0.00019614,2]
[359737257,1746289838847,-1677.02,0.00019614,2]
[359737258,1746289838857,-450.0,0.00019614,2]
[359737259,1746289838867,-450.0,0.00019614,2]
[359737260,1746289838876,-450.0,0.00019614,2]
[359737261,1746289838886,-450.0,0.00019614,2]
[359737262,1746289838895,-450.0,0.00019614,2]
[359737263,1746289838904,-450.0,0.00019614,2]
[359737264,1746289838914,-1101.66,0.00019614,2]
[359737265,1746289838923,-883.04,0.00019614,2]
[359737266,1746289838933,-450.0,0.00019614,2]
[359737267,1746289838942,-487.62,0.00019614,2]
[359737268,1746289838951,-866.11,0.00019614,2]
[359737269,1746289838960,-450.0,0.00019614,2]
[359737270,1746289838969,-450.0,0.00019614,2]
[359737271,1746289838979,-410.11033418,0.00019614,2]
[359737272,1746289838988,-450.0,0.00019614,2]
[359737273,1746289838997,-475.65,0.00019614,2]
[359737274,1746289839007,-2635.09,0.00019614,2]
[359737275,1746289839016,-450.0,0.00019614,2]
[359737276,1746289839026,-376.58923022,0.00019614,2]
[359737277,1746289839036,-558.62,0.00019614,2]
[359737278,1746289839046,-353.16523101,0.00019614,2]
[359737279,1746289839056,-498.13,0.00019614,2]
[359737280,1746289839065,-500.0,0.00019614,2]
[359737281,1746289839074,-500.0,0.00019614,2]
[359737282,1746289839084,-500.0,0.00019614,2]
[359737283,1746289839093,-499.46,0.00019614,2]
[359737284,1746289839103,-500.0,0.00019614,2]
[359737285,1746289839112,-637.3684689,0.00019614,2]
[359737286,1746289839122,-519.14,0.00019614,2]
[359737287,1746289839131,-450.0,0.00019614,2]
[359737288,1746289839140,-553.78,0.00019614,2]
[359737289,1746289839149,-995.21,0.00019614,2]
[359737290,1746289839158,-3639.21,0.00019614,2]
[359737291,1746289839167,-450.0,0.00019614,2]
[359737292,1746289839176,-450.0,0.00019614,2]
[359737293,1746289839186,-450.0,0.00019614,2]
[359737294,1746289839195,-450.0,0.00019614,2]
[359737295,1746289839204,-511.88,0.00019614,2]
[359737296,1746289839214,-450.0,0.00019614,2]
[359737297,1746289839223,-1039.8,0.00019614,2]
[359737298,1746289839232,-1221.92,0.00019614,2]
[359737299,1746289839241,-450.0,0.00019614,2]
[359737300,1746289839251,-467.47,0.00019614,2]
[359737301,1746289839260,-450.0,0.00019614,2]
[359737302,1746289839269,-1828.02,0.00019614,2]
[359737303,1746289839279,-450.0,0.00019614,2]
[359737304,1746289839288,-840.81,0.00019614,2]
[359737305,1746289839297,-542.65,0.00019614,2]
[359737306,1746289839306,-679.22,0.00019614,2]
[359737307,1746289839316,-746.09,0.00019614,2]
[359737308,1746289839326,-3599.02,0.00019614,2]
[359737309,1746289839335,-450.0,0.00019614,2]
[359737310,1746289839344,-450.0,0.00019614,2]
[359737311,1746289839354,-450.0,0.00019614,2]
[359737312,1746289839366,-575.31,0.00019614,2]
[359737313,1746289839375,-450.0,0.00019614,2]
[359737314,1746289839384,-450.0,0.00019614,2]
[359737315,1746289839393,-450.0,0.00019614,2]
[359737316,1746289839403,-450.0,0.00019614,2]
[359737317,1746289839415,-1735.52,0.00019614,2]
[359737318,1746289839425,-468.70797676,0.00019614,2]
[359737319,1746289839434,-621.54,0.00019614,2]
[359737320,1746289839444,-438.32,0.00019614,2]
[359737321,1746289839454,-838.36,0.00019614,2]
[359737322,1746289839463,-450.0,0.00019614,2]
[359737323,1746289839473,-450.0,0.00019614,2]
[359737324,1746289839483,-450.0,0.00019614,2]
[359737325,1746289839492,-450.0,0.00019614,2]
[359737326,1746289839503,-884.68,0.00019614,2]
[359737327,1746289839512,-450.0,0.00019614,2]
[359737328,1746289839521,-451.56,0.00019614,2]
[359737329,1746289839530,-450.0,0.00019614,2]
[359737330,1746289839539,-1748.58,0.00019614,2]
[359737331,1746289839552,-450.0,0.00019614,2]
[359737332,1746289839560,-560.28,0.00019614,2]
[359737333,1746289839569,-5704.7,0.00019614,2]
[359737334,1746289839579,-592.31,0.00019614,2]
[359737335,1746289839589,-450.0,0.00019614,2]
[359737336,1746289839598,-450.0,0.00019614,2]
[359737337,1746289839607,-450.0,0.00019614,2]
[359737338,1746289839617,-450.0,0.00019614,2]
[359737339,1746289839627,-450.0,0.00019614,2]
[359737340,1746289839637,-1053.17,0.00019614,2]
[359737341,1746289839646,-736.45,0.00019614,2]
[359737342,1746289839656,-4570.4,0.00019614,2]
[359737343,1746289839666,-450.0,0.00019614,2]
[359737344,1746289839676,-450.0,0.00019614,2]
[359737345,1746289839685,-450.0,0.00019614,2]
[359737346,1746289839695,-311.31525845,0.00019614,2]
[359737348,1746289839705,-4544.97,0.00019614,2]
[359737349,1746289839714,-4039.84,0.00019614,2]
[359737351,1746289839723,-573.94,0.00019614,2]
[359737352,1746289839732,-450.0,0.00019614,2]
[359737353,1746289839741,-787.02,0.00019614,2]
[359737354,1746289839750,-556.46148673,0.00019614,2]
[359737355,1746289839759,-450.0,0.00019614,2]
[359737357,1746289839768,-3279.25,0.00019614,2]
[359737358,1746289839778,-450.0,0.00019614,2]
[359737359,1746289839787,-466.82,0.00019614,2]
[359737360,1746289839796,-450.0,0.00019614,2]
[359737361,1746289839806,-450.0,0.00019614,2]
[359737362,1746289839815,-450.0,0.00019615,2]
[359737363,1746289839824,-450.0,0.00019615,2]
[359737364,1746289839833,-524.3,0.00019615,2]
[359737365,1746289839843,-450.0,0.00019615,2]
[359737366,1746289839852,-450.0,0.00019615,2]
[359737367,1746289839862,-450.0,0.00019615,2]
[359737368,1746289839871,-450.0,0.00019615,2]
[359737369,1746289839881,-500.0,0.00019615,2]
[359737370,1746289839891,-450.0,0.00019615,2]
[359737371,1746289839900,-450.0,0.00019615,2]
[359737372,1746289839910,-450.0,0.00019615,2]
[359737373,1746289839919,-450.0,0.00019615,2]
[359737374,1746289839928,-450.0,0.00019615,2]
[359737375,1746289839938,-450.0,0.00019615,2]
[359737376,1746289839947,-450.0,0.00019615,2]
[359737377,1746289839957,-450.0,0.00019615,2]
[359737378,1746289839967,-450.0,0.00019615,2]
[359737379,1746289839976,-450.0,0.00019615,2]
[359737380,1746289839986,-450.0,0.00019615,2]
[359737381,1746289839995,-450.0,0.00019615,2]
[359737382,1746289840005,-450.0,0.00019615,2]
[359737383,1746289840015,-450.0,0.00019615,2]
[359737384,1746289840025,-450.0,0.00019615,2]
[359737385,1746289840034,-450.0,0.00019615,2]
[359737386,1746289840044,-450.0,0.00019615,2]
[359737387,1746289840053,-602.05,0.00019615,2]
[359737388,1746289840063,-450.0,0.00019615,2]
[359737389,1746289840073,-450.0,0.00019615,2]
[359737390,1746289840083,-549.31,0.00019615,2]
[359737391,1746289840093,-450.0,0.00019615,2]
[359737392,1746289840102,-528.96,0.00019615,2]
[359737393,1746289840112,-1446.3,0.00019615,2]
[359737394,1746289840122,-450.0,0.00019615,2]
[359737395,1746289840133,-450.0,0.00019615,2]
[359737396,1746289840144,-450.0,0.00019615,2]
[359737397,1746289840154,-450.0,0.00019615,2]
[359737398,1746289840164,-450.0,0.00019615,2]
[359737399,1746289840174,-450.0,0.00019615,2]
[359737400,1746289840184,-450.0,0.00019615,2]
[359737401,1746289840194,-450.0,0.00019615,2]
[359737402,1746289840204,-710.86,0.00019615,2]
[359737403,1746289840214,-450.0,0.00019615,2]
[359737404,1746289840223,-450.0,0.00019615,2]
[359737405,1746289840233,-450.0,0.00019615,2]
[359737406,1746289840243,-1067.05,0.00019615,2]
[359737407,1746289840252,-393.19971781,0.00019615,2]
[359737408,1746289840263,-515.52,0.00019615,2]
[359737409,1746289840272,-450.0,0.00019615,2]
[359737410,1746289840282,-450.0,0.00019615,2]
[359737411,1746289840291,-450.0,0.00019615,2]
[359737412,1746289840300,-450.0,0.00019615,2]
[359737413,1746289840310,-450.0,0.00019615,2]
[359737414,1746289840320,-536.78,0.00019615,2]
[359737415,1746289840329,-450.0,0.00019615,2]
[359737416,1746289840339,-450.0,0.00019615,2]
[359737417,1746289840349,-232.03197545,0.00019615,2]
[359737418,1746289840359,-450.0,0.00019615,2]
[359737419,1746289840372,-450.0,0.00019615,2]
[359737420,1746289840382,-450.0,0.00019615,2]
[359737421,1746289840392,-450.0,0.00019615,2]
[359737422,1746289840403,-450.0,0.00019615,2]
[359737423,1746289840412,-450.0,0.00019615,2]
[359737424,1746289840421,-450.0,0.00019615,2]
[359737425,1746289840433,-589.57,0.00019615,2]
[359737426,1746289840443,-776.88,0.00019615,2]
[359737427,1746289840454,-450.0,0.00019615,2]
[359737428,1746289840463,-450.0,0.00019615,2]
[359737429,1746289840472,-450.0,0.00019615,2]
[359737430,1746289840482,-450.0,0.00019615,2]
[359737431,1746289840491,-599.61,0.00019615,2]
[359737432,1746289840501,-450.0,0.00019615,2]
[359737433,1746289840512,-479.20352983,0.00019615,2]
[359737434,1746289840522,-482.04692344,0.00019615,2]
[359737435,1746289840532,-529.54923781,0.00019615,2]
[359737436,1746289840542,-473.97622075,0.00019615,2]
[359737437,1746289840552,-492.25,0.00019615,2]
[359737438,1746289840562,-450.0,0.00019615,2]
[359737439,1746289840572,-1580.84,0.00019615,2]
[359737440,1746289840582,-450.0,0.00019615,2]
[359737441,1746289840591,-781.42,0.00019615,2]
[359737442,1746289840602,-450.0,0.00019615,2]
[359737443,1746289840611,-450.0,0.00019615,2]
[359737444,1746289840621,-523.20208212,0.00019615,2]
[359737445,1746289840631,-450.0,0.00019615,2]
[359737446,1746289840640,-772.33,0.00019615,2]
[359737447,1746289840650,-450.0,0.00019615,2]
[359737448,1746289840659,-564.89707459,0.00019615,2]
[359737449,1746289840669,-605.33,0.00019615,2]
[359737450,1746289840679,-510.92426429,0.00019615,2]
[359737451,1746289840688,-450.0,0.00019615,2]
[359737452,1746289840698,-450.0,0.00019615,2]
[359737453,1746289840709,-450.0,0.00019615,2]
[359737454,1746289840719,-533.95367948,0.00019615,2]
[359737455,1746289840729,-450.0,0.00019615,2]
[359737456,1746289840739,-450.0,0.00019615,2]
[359737457,1746289840749,-450.0,0.00019615,2]
[359737458,1746289840759,-450.0,0.00019615,2]
[359737459,1746289840769,-450.0,0.00019615,2]
[359737460,1746289840779,-450.0,0.00019615,2]
[359737461,1746289840789,-450.0,0.00019615,2]
[359737462,1746289840799,-450.0,0.00019615,2]
[359737463,1746289840809,-651.08,0.00019615,2]
[359737464,1746289840819,-514.47,0.00019615,2]
[359737465,1746289840829,-450.0,0.00019615,2]
[359737466,1746289840838,-528.91,0.00019615,2]
[359737467,1746289840848,-450.0,0.00019615,2]
[359737468,1746289840858,-1050.95,0.00019615,2]
[359737469,1746289840868,-450.0,0.00019615,2]
[359737470,1746289840878,-483.42226741,0.00019615,2]
[359737471,1746289840888,-450.0,0.00019615,2]
[359737472,1746289840898,-450.0,0.00019615,2]
[359737473,1746289840908,-480.61657555,0.00019615,2]
[359737474,1746289840918,-450.0,0.00019615,2]
[359737475,1746289840927,-450.0,0.00019615,2]
[359737476,1746289840937,-450.0,0.00019615,2]
[359737477,1746289840947,-450.0,0.00019615,2]
[359737478,1746289840958,-450.0,0.00019615,2]
[359737479,1746289840969,-185.50934107,0.00019615,2]
[359737480,1746289840979,-450.0,0.00019615,2]
[359737481,1746289840990,-450.0,0.00019615,2]
[359737482,1746289841000,-450.0,0.00019615,2]
[359737483,1746289841010,-585.43,0.00019615,2]
[359737484,1746289841020,-450.0,0.00019615,2]
[359737485,1746289841030,-644.02,0.00019615,2]
[359737486,1746289841039,-450.0,0.00019615,2]
[359737487,1746289841049,-450.0,0.00019615,2]
[359737488,1746289841059,-450.0,0.00019615,2]
[359737489,1746289841070,-450.0,0.00019615,2]
[359737490,1746289841080,-450.0,0.00019615,2]
[359737491,1746289841090,-450.0,0.00019615,2]
[359737492,1746289841100,-474.32117263,0.00019615,2]
[359737493,1746289841110,-450.0,0.00019615,2]
[359737494,1746289841120,-450.0,0.00019615,2]
[359737495,1746289841130,-450.0,0.00019615,2]
[359737496,1746289841140,-547.90544793,0.00019615,2]
[359737497,1746289841150,-450.0,0.00019615,2]
[359737498,1746289841159,-450.0,0.00019615,2]
[359737499,1746289841169,-450.0,0.00019615,2]
[359737500,1746289841179,-1247.78,0.00019615,2]
[359737501,1746289841189,-695.97,0.00019615,2]
[359737502,1746289841199,-450.0,0.00019615,2]
[359737503,1746289841209,-450.0,0.00019615,2]
[359737504,1746289841219,-450.0,0.00019615,2]
[359737505,1746289841229,-450.0,0.00019615,2]
[359737506,1746289841239,-450.0,0.00019615,2]
[359737507,1746289841248,-450.0,0.00019615,2]
[359737508,1746289841258,-450.0,0.00019615,2]
[359737509,1746289841268,-276.74108748,0.00019615,2]
[359737510,1746289841278,-450.0,0.00019615,2]
[359737511,1746289841287,-450.0,0.00019615,2]
[359737512,1746289841297,-450.0,0.00019615,2]
[359737513,1746289841306,-1419.14,0.00019615,2]
[359737514,1746289841316,-290.0961764,0.00019615,2]
[359737515,1746289841325,-280.71919491,0.00019615,2]
[359737516,1746289841335,-450.0,0.00019615,2]
[359737517,1746289841345,-582.81,0.00019615,2]
[359737518,1746289841356,-608.43,0.00019615,2]
[359737519,1746289841370,-450.0,0.00019615,2]
[359737520,1746289841379,-412.14685447,0.00019615,2]
[359737521,1746289841389,-450.0,0.00019615,2]
[359737522,1746289841398,-471.59,0.00019615,2]
[359737523,1746289841408,-474.22018623,0.00019615,2]
[359737524,1746289841418,-450.0,0.00019615,2]
[359737525,1746289841427,-450.0,0.00019615,2]
[359737526,1746289841437,-516.91,0.00019615,2]